bitfinex/quotes_BTCUSD_20241117
["timestamp","ask_amount","ask_price","bid_price","bid_amount"]
[1731833109803,0.02715486,90782.0,90778.0,0.110158]
[1731833110035,0.02715486,90782.0,90774.0,0.220327]
[1731833110036,0.02715486,90782.0,90779.0,0.11704252]
[1731833110261,0.02715486,90782.0,90780.0,0.11704152]
[1731833110475,0.16549168,90793.0,90787.0,0.110147]
[1731833110692,0.16549168,90793.0,90785.0,0.110149]
[1731833110693,0.13723314,90792.0,90785.0,0.110149]
[1731833111098,0.13723314,90792.0,90786.0,0.16549168]
[1731833111320,0.13723314,90792.0,90786.0,0.110148]
[1731833111546,0.02709114,90792.0,90783.0,0.220305]
[1731833111759,0.110143,90791.0,90785.0,0.110149]
[1731833111969,0.13726068,90790.0,90786.0,0.00688525]
[1731833112190,0.02711568,90790.0,90786.0,0.00688525]
[1731833112406,0.110147,90787.0,90786.0,0.00688525]
[1731833114505,0.079,90787.0,90767.0,0.220344]
[1731833114726,0.11016,90777.0,90776.0,0.16549168]
[1731833114959,0.110164,90774.0,90764.0,0.005]
[1731833115173,0.110172,90768.0,90766.0,0.023]
[1731833115450,0.12582915,90773.0,90752.0,0.005]
[1731833115660,0.12582915,90773.0,90735.0,0.005]
[1731833115661,0.12582915,90766.0,90758.0,0.16549168]
[1731833115869,0.110181,90759.0,90758.0,0.16549168]
[1731833116309,0.12582915,90766.0,90751.0,0.110191]
[1731833116310,0.110184,90757.0,90751.0,0.110191]
[1731833116513,0.12582915,90766.0,90747.0,0.005]
[1731833116514,0.220366,90758.0,90747.0,0.005]
[1731833116724,0.110183,90758.0,90752.0,0.0018249]
[1731833116952,0.110183,90758.0,90747.0,0.005]
[1731833116953,0.110186,90756.0,90744.0,0.225399]
[1731833117151,0.220356,90762.0,90753.0,0.0018249]
[1731833117388,0.220356,90762.0,90753.0,0.05462863]
[1731833117622,0.220358,90761.0,90753.0,0.05462863]
[1731833117851,0.110183,90758.0,90753.0,0.05462863]
[1731833118060,0.110183,90758.0,90754.0,0.00182631]
[1731833118289,0.11018,90760.0,90754.0,0.00182631]
[1731833118514,0.11018,90760.0,90755.0,0.00172202]
[1731833118929,0.11018,90760.0,90750.0,0.220385]
[1731833119110,0.110182,90759.0,90756.0,0.00172273]
[1731833119349,0.110182,90759.0,90752.0,0.110189]
[1731833119566,0.110174,90765.0,90757.0,0.00172131]
[1731833119759,0.110171,90768.0,90760.0,0.023]
[1731833120205,0.110171,90768.0,90763.0,0.023]
[1731833120401,0.110174,90766.0,90763.0,0.023]
[1731833120613,0.110173,90767.0,90765.0,0.023]
[1731833120784,0.220339,90769.0,90765.0,0.023]
[1731833120986,0.110173,90766.0,90761.0,0.023]
[1731833121475,0.110173,90766.0,90763.0,0.023]
[1731833121606,0.110174,90765.0,90763.0,0.023]
[1731833121806,0.110172,90767.0,90764.0,0.02473598]
[1731833122063,0.102172,90767.0,90765.0,0.023]
[1731833122302,0.220334,90771.0,90765.0,0.023]
[1731833122303,0.110173,90766.0,90765.0,0.023]
[1731833122470,0.110175,90765.0,90759.0,0.023]
[1731833122811,0.220334,90771.0,90763.0,0.023]
[1731833123031,0.19607629,90781.0,90765.0,0.023]
[1731833123032,0.110161,90776.0,90765.0,0.023]
[1731833123207,0.17703814,90781.0,90767.0,0.220344]
[1731833123499,0.110156,90780.0,90773.0,0.110164]
[1731833123703,0.110162,90775.0,90774.0,0.023]
[1731833123929,0.110161,90776.0,90775.0,0.023]
[1731833124208,0.220317,90778.0,90753.0,0.03614908]
[1731833124407,0.22031,90781.0,90765.0,0.16549168]
[1731833124614,0.110165,90773.0,90754.0,0.00165258]
[1731833124822,0.110165,90773.0,90767.0,0.110171]
[1731833125027,0.220317,90778.0,90763.0,0.220354]
[1731833125221,0.110163,90775.0,90768.0,0.00164888]
[1731833125437,0.10906255,90780.0,90764.0,0.110175]
[1731833125616,0.110167,90771.0,90769.0,0.00164959]
[1731833125827,0.10906255,90780.0,90762.0,0.00117456]
[1731833126057,0.220331,90773.0,90761.0,0.110178]
[1731833126261,0.220331,90773.0,90764.0,0.023]
[1731833126262,0.110171,90768.0,90764.0,0.023]
[1731833126696,0.110172,90767.0,90766.0,0.023]
[1731833126925,0.660951,90778.0,90765.0,0.00164747]
[1731833126926,0.110173,90766.0,90765.0,0.00164747]
[1731833127136,0.110195,90748.0,90739.0,0.110206]
[1731833127351,0.079,90771.0,90756.0,0.16549168]
[1731833127352,0.110184,90757.0,90756.0,0.16549168]
[1731833127604,0.110194,90749.0,90742.0,0.110202]
[1731833127857,0.220361,90760.0,90743.0,0.11708751]
[1731833128097,0.330537,90761.0,90744.0,0.110199]
[1731833128098,0.110193,90750.0,90744.0,0.110199]
[1731833128451,0.16549168,90761.0,90744.0,0.110199]
[1731833128660,0.110192,90751.0,90745.0,0.023]
[1731833128876,0.110192,90751.0,90743.0,0.023]
[1731833129112,0.110192,90751.0,90746.0,0.023]
[1731833129307,0.110186,90756.0,90750.0,0.023]
[1731833129510,0.110182,90759.0,90750.0,0.023]
[1731833129879,0.12582915,90770.0,90748.0,0.023]
[1731833129880,0.10906255,90763.0,90748.0,0.023]
[1731833130111,0.110182,90759.0,90748.0,0.02417456]
[1731833130336,0.110182,90759.0,90752.0,0.11019]
[1731833130552,0.10906255,90763.0,90748.0,0.02417456]
[1731833130774,0.38280027,90764.0,90746.0,0.00117456]
[1731833131004,0.16549168,90764.0,90753.0,0.110188]
[1731833131210,0.220354,90763.0,90753.0,0.110188]
[1731833131455,0.110177,90763.0,90755.0,0.110186]
[1731833131692,0.11018,90761.0,90754.0,0.00166909]
[1731833131905,0.11018,90761.0,90757.0,0.023]
[1731833132102,0.11018,90760.0,90757.0,0.023]
[1731833132337,0.22034,90769.0,90759.0,0.023]
[1731833132568,0.110175,90765.0,90759.0,0.023]
[1731833132800,0.110175,90765.0,90753.0,0.220376]
[1731833132801,0.22034,90769.0,90761.0,0.023]
[1731833133036,0.110175,90765.0,90761.0,0.023]
[1731833133268,0.220337,90770.0,90763.0,0.023]
[1731833133485,0.110176,90764.0,90763.0,0.023]
[1731833134182,0.15692593,90764.0,90763.0,0.023]
[1731833134867,0.0786,90762.0,90738.0,0.0008563]
[1731833135094,0.110186,90755.0,90754.0,0.023]
[1731833135614,0.110194,90749.0,90748.0,0.023]
[1731833136063,0.110197,90747.0,90743.0,0.023]
[1731833136288,0.220386,90750.0,90743.0,0.023]
[1731833136510,0.220368,90757.0,90743.0,0.023]
[1731833136733,0.1888,90744.0,90743.0,0.023]
[1731833137210,0.1808,90744.0,90743.0,0.023]
[1731833138770,0.110187,90755.0,90745.0,0.023]
[1731833139031,0.110189,90753.0,90748.0,0.023]
[1731833139291,0.110188,90754.0,90748.0,0.023]
[1731833139507,0.110188,90754.0,90750.0,0.023]
[1731833139723,0.0786,90758.0,90750.0,0.023]
[1731833139955,0.0786,90758.0,90752.0,0.023]
[1731833140174,0.220368,90757.0,90752.0,0.023]
[1731833140418,0.110188,90754.0,90748.0,0.110195]
[1731833140636,0.110184,90757.0,90749.0,0.133193]
[1731833140868,0.110184,90757.0,90751.0,0.110191]
[1731833141093,0.110185,90757.0,90752.0,0.023]
[1731833141321,0.0786,90765.0,90760.0,0.023]
[1731833141548,0.110173,90767.0,90760.0,0.13318]
[1731833141753,0.0475,90771.0,90761.0,0.22205675]
[1731833141971,0.0475,90771.0,90764.0,0.023]
[1731833142213,0.11017,90769.0,90764.0,0.023]
[1731833142431,0.09517,90769.0,90766.0,0.023]
[1731833142852,0.0475,90771.0,90762.0,0.023]
[1731833143084,0.220337,90770.0,90762.0,0.023]
[1731833143338,0.110172,90767.0,90762.0,0.023]
[1731833143960,0.0008564,90765.0,90762.0,0.023]
[1731833144387,0.110177,90763.0,90762.0,0.023]
[1731833146340,0.110177,90763.0,90762.0,0.02469085]
[1731833146612,0.0008564,90765.0,90762.0,0.02469085]
[1731833146854,0.0008564,90765.0,90764.0,0.133175]
[1731833147059,0.0008564,90765.0,90764.0,0.023]
[1731833147290,0.0008564,90765.0,90764.0,0.02465225]
[1731833148812,0.0008564,90765.0,90764.0,0.13482725]
[1731833150122,0.0008564,90765.0,90764.0,0.13600181]
[1731833150337,0.0008564,90765.0,90764.0,0.02465225]
[1731833151012,0.1110304,90765.0,90764.0,0.02465225]
[1731833151461,0.0008564,90765.0,90762.0,0.023]
[1731833151684,0.188777,90763.0,90762.0,0.023]
[1731833151909,0.110178,90762.0,90761.0,0.19]
[1731833152118,0.147678,90762.0,90761.0,0.19]
[1731833152566,0.147678,90762.0,90761.0,0.18977537]
[1731833152990,0.147678,90762.0,90761.0,0.19145651]
[1731833153434,0.147678,90762.0,90761.0,0.21445651]
[1731833153647,0.147678,90762.0,90761.0,0.02468114]
[1731833154068,0.0008564,90765.0,90761.0,0.14882915]
[1731833154277,0.0008563,90772.0,90765.0,0.023]
[1731833154278,0.09885442,90770.0,90765.0,0.023]
[1731833154564,0.0008563,90772.0,90765.0,0.023]
[1731833154768,0.0008563,90772.0,90767.0,0.133171]
[1731833155037,0.0008563,90772.0,90768.0,0.00167526]
[1731833155235,0.0008563,90772.0,90771.0,0.133167]
[1731833155443,0.0008563,90772.0,90771.0,0.14005334]
[1731833155686,0.0008563,90772.0,90771.0,0.14171267]
[1731833155910,0.0008563,90772.0,90771.0,0.15272964]
[1731833156546,0.0008563,90772.0,90771.0,0.23132964]
[1731833156748,0.0008563,90772.0,90771.0,0.2325042]
[1731833157281,0.0008563,90772.0,90771.0,0.35833335]
[1731833157488,0.0008563,90772.0,90771.0,0.35715879]
[1731833158127,0.0008563,90772.0,90771.0,0.35833335]
[1731833158554,0.0008563,90772.0,90771.0,0.44614084]
[1731833158797,0.0008563,90772.0,90771.0,0.4473154]
[1731833159426,0.0008563,90772.0,90771.0,0.33132826]
[1731833159643,0.0008563,90772.0,90771.0,0.25272826]
[1731833160081,0.0008563,90772.0,90771.0,0.24171169]
[1731833160937,0.0008563,90772.0,90771.0,0.03154469]
[1731833161791,0.0008563,90772.0,90771.0,0.24171169]
[1731833162010,0.0008563,90772.0,90771.0,0.23482633]
[1731833162230,0.0008563,90772.0,90771.0,0.24171217]
[1731833162677,0.0008563,90772.0,90771.0,0.24288673]
[1731833163151,0.0791,90788.0,90785.0,0.11015]
[1731833163357,0.0791,90788.0,90786.0,0.023]
[1731833163628,0.0791,90788.0,90786.0,0.02463068]
[1731833164465,0.110147,90787.0,90786.0,0.02463068]
[1731833164880,0.0791,90788.0,90786.0,0.023]
[1731833165571,0.0791,90788.0,90783.0,0.023]
[1731833165980,0.0791,90788.0,90785.0,0.023]
[1731833166480,0.0469,90791.0,90789.0,0.023]
[1731833166700,0.0469,90791.0,90786.0,0.00163133]
[1731833166701,0.110141,90792.0,90790.0,0.023]
[1731833166923,0.189238,90795.0,90791.0,0.023]
[1731833167134,0.0711,90795.0,90791.0,0.023]
[1731833167357,0.110139,90794.0,90788.0,0.023]
[1731833167618,0.0711,90795.0,90789.0,0.023]
[1731833167831,0.0711,90795.0,90794.0,0.023]
[1731833168041,0.0469,90799.0,90794.0,0.023]
[1731833168244,0.3190738,90806.0,90794.0,0.023]
[1731833168245,0.110127,90804.0,90796.0,0.110136]
[1731833168495,0.0469,90807.0,90797.0,0.023]
[1731833168695,0.0469,90807.0,90802.0,0.023]
[1731833168939,0.0469,90807.0,90800.0,0.110131]
[1731833169142,0.0469,90807.0,90803.0,0.00205994]
[1731833169392,0.0469,90807.0,90804.0,0.023]
[1731833169609,0.0469,90807.0,90797.0,0.023]
[1731833169845,0.110126,90805.0,90799.0,0.023]
[1731833170050,0.0469,90807.0,90799.0,0.023]
[1731833170275,0.126,90807.0,90799.0,0.023]
[1731833170483,0.110129,90802.0,90801.0,0.023]
[1731833170899,0.220249,90806.0,90799.0,0.023]
[1731833171118,0.110132,90800.0,90799.0,0.023]
[1731833171328,0.220254,90804.0,90799.0,0.023]
[1731833171329,0.110127,90804.0,90799.0,0.023]
[1731833171544,0.126,90807.0,90799.0,0.023]
[1731833171755,0.126,90807.0,90801.0,0.023]
[1731833171971,0.110128,90804.0,90801.0,0.023]
[1731833172187,0.126,90807.0,90803.0,0.023]
[1731833172681,0.126,90807.0,90799.0,0.023]
[1731833172906,0.126,90807.0,90800.0,0.16549168]
[1731833173125,0.110125,90806.0,90800.0,0.00206547]
[1731833173337,0.110126,90805.0,90800.0,0.00206547]
[1731833173544,0.110126,90805.0,90799.0,0.02253448]
[1731833174184,0.0791,90807.0,90799.0,0.02253448]
[1731833174414,0.110126,90805.0,90799.0,0.02253448]
[1731833174894,0.110127,90804.0,90799.0,0.02253448]
[1731833175099,0.220249,90806.0,90799.0,0.02253448]
[1731833175317,0.110126,90805.0,90799.0,0.02253448]
[1731833175524,0.220249,90806.0,90798.0,0.023]
[1731833175958,0.220252,90805.0,90798.0,0.023]
[1731833176182,0.110129,90803.0,90796.0,0.133136]
[1731833176404,0.110129,90803.0,90794.0,0.220278]
[1731833176405,0.110129,90803.0,90800.0,0.023]
[1731833176625,0.0791,90807.0,90798.0,0.023]
[1731833176841,0.110126,90805.0,90800.0,0.023]
[1731833177294,0.0791,90807.0,90801.0,0.11013]
[1731833177534,0.110125,90806.0,90802.0,0.023]
[1731833177752,0.110125,90806.0,90800.0,0.110131]
[1731833177753,0.110125,90806.0,90801.0,0.023]
[1731833178187,0.0791,90807.0,90802.0,0.110129]
[1731833178392,0.0791,90807.0,90803.0,0.023]
[1731833178617,0.189224,90807.0,90803.0,0.023]
[1731833178866,0.189224,90807.0,90801.0,0.023]
[1731833179094,0.189224,90807.0,90805.0,0.023]
[1731833179311,0.189224,90807.0,90802.0,0.023]
[1731833179752,0.0791,90807.0,90802.0,0.023]
[1731833179962,0.0765,90813.0,90802.0,0.110129]
[1731833180167,0.0765,90813.0,90799.0,0.00117456]
[1731833180168,0.0765,90813.0,90805.0,0.023]
[1731833180387,0.0765,90813.0,90805.0,0.133125]
[1731833180594,0.0765,90813.0,90806.0,0.023]
[1731833180778,0.0765,90813.0,90806.0,0.220249]
[1731833181037,0.0765,90813.0,90811.0,0.023]
[1731833181250,0.0765,90813.0,90810.0,0.023]
[1731833181476,0.0765,90813.0,90810.0,0.133119]
[1731833181703,0.0765,90813.0,90809.0,0.023]
[1731833181928,0.0765,90813.0,90812.0,0.023]
[1731833182131,0.0685,90813.0,90812.0,0.023]
[1731833182345,0.0685,90813.0,90812.0,0.133117]
[1731833183220,0.0482,90815.0,90812.0,0.133117]
[1731833183432,0.0008559,90821.0,90811.0,0.023]
[1731833183653,0.0008559,90821.0,90815.0,0.110113]
[1731833183866,0.0008559,90821.0,90816.0,0.023]
[1731833184239,0.0008559,90821.0,90813.0,0.023]
[1731833184480,0.0008559,90821.0,90814.0,0.110114]
[1731833184670,0.1109629,90821.0,90815.0,0.023]
[1731833184980,0.1109629,90821.0,90815.0,0.110113]
[1731833185209,0.0765,90820.0,90816.0,0.023]
[1731833185398,0.186608,90820.0,90816.0,0.023]
[1731833185603,0.0765,90820.0,90815.0,0.110113]
[1731833185830,0.0765,90820.0,90811.0,0.023]
[1731833185831,0.0765,90820.0,90817.0,0.023]
[1731833186030,0.0765,90820.0,90804.0,0.023]
[1731833186163,0.110112,90817.0,90811.0,0.110118]
[1731833186376,0.0765,90820.0,90812.0,0.00688313]
[1731833186604,0.186608,90820.0,90813.0,0.110115]
[1731833187005,0.110109,90819.0,90813.0,0.110115]
[1731833187368,0.110109,90819.0,90814.0,0.110114]
[1731833187570,0.0765,90820.0,90807.0,0.16549168]
[1731833187770,0.0765,90820.0,90808.0,0.00688297]
[1731833187985,0.0765,90820.0,90813.0,0.023]
[1731833188446,0.11011,90818.0,90813.0,0.110115]
[1731833188650,0.0765,90820.0,90809.0,0.220242]
[1731833188871,0.0765,90820.0,90808.0,0.023]
[1731833188872,0.11011,90818.0,90810.0,0.00688308]
[1731833189051,0.11011,90818.0,90813.0,0.023]
[1731833189292,0.0765,90820.0,90816.0,0.023]
[1731833189477,0.186608,90820.0,90814.0,0.11699697]
[1731833189715,0.110108,90820.0,90815.0,0.023]
[1731833189923,0.11011,90818.0,90813.0,0.023]
[1731833190562,0.110111,90817.0,90815.0,0.023]
[1731833190755,0.110111,90817.0,90812.0,0.023]
[1731833190929,0.110111,90817.0,90814.0,0.023]
[1731833191361,0.110111,90817.0,90810.0,0.023]
[1731833191608,0.110111,90817.0,90812.0,0.023]
[1731833191829,0.110111,90817.0,90814.0,0.023]
[1731833192227,0.110111,90817.0,90812.0,0.023]
[1731833192727,0.110121,90810.0,90802.0,0.023]
[1731833192929,0.110121,90810.0,90806.0,0.023]
[1731833193126,0.191721,90810.0,90808.0,0.023]
[1731833193548,0.191721,90810.0,90809.0,0.023]
[1731833193761,0.0816,90810.0,90809.0,0.023]
[1731833193945,0.0816,90810.0,90805.0,0.023]
[1731833194152,0.0816,90810.0,90806.0,0.0068833]
[1731833194368,0.110122,90809.0,90807.0,0.0298833]
[1731833194563,0.110122,90809.0,90808.0,0.0298833]
[1731833195104,0.110122,90809.0,90804.0,0.023]
[1731833195351,0.0816,90810.0,90806.0,0.133124]
[1731833196470,0.110122,90809.0,90803.0,0.023]
[1731833196692,0.0816,90810.0,90803.0,0.133128]
[1731833196931,0.0816,90810.0,90808.0,0.023]
[1731833197156,0.0736,90810.0,90808.0,0.023]
[1731833197384,0.0736,90810.0,90802.0,0.0017118]
[1731833197385,0.0736,90810.0,90806.0,0.110124]
[1731833197616,0.110122,90809.0,90808.0,0.023]
[1731833197877,0.110122,90809.0,90808.0,0.0298834]
[1731833198100,0.0736,90810.0,90808.0,0.0298834]
[1731833198334,0.0736,90810.0,90809.0,0.0298834]
[1731833198564,0.110116,90813.0,90810.0,0.023]
[1731833198801,0.220227,90815.0,90812.0,0.023]
[1731833199274,0.220227,90815.0,90803.0,0.01101328]
[1731833199275,0.0008559,90817.0,90805.0,0.220249]
[1731833199506,0.0008559,90817.0,90806.0,0.01789655]
[1731833199733,0.0008559,90817.0,90811.0,0.023]
[1731833199960,0.110116,90813.0,90812.0,0.02988327]
[1731833200447,0.220225,90816.0,90813.0,0.023]
[1731833200668,0.110113,90815.0,90814.0,0.00688327]
[1731833200923,0.110113,90815.0,90814.0,0.02988327]
[1731833202472,0.110115,90814.0,90809.0,0.023]
[1731833202921,0.0008559,90817.0,90810.0,0.00688323]
[1731833203165,0.220225,90816.0,90811.0,0.02988323]
[1731833203436,0.110117,90812.0,90807.0,0.023]
[1731833203657,0.22023,90814.0,90808.0,0.0068832]
[1731833203881,0.0008559,90817.0,90808.0,0.0068832]
[1731833204104,0.11012,90810.0,90809.0,0.0068832]
[1731833204580,0.110118,90812.0,90809.0,0.0068832]
[1731833204835,0.22023,90814.0,90810.0,0.0068832]
[1731833205060,0.0008559,90817.0,90811.0,0.0068832]
[1731833205257,0.110113,90816.0,90812.0,0.0068832]
[1731833205502,0.110113,90816.0,90813.0,0.0068832]
[1731833205705,0.1109669,90817.0,90811.0,0.110118]
[1731833205915,0.0008559,90817.0,90814.0,0.22023]
[1731833206176,0.0008559,90817.0,90816.0,0.133112]
[1731833206382,0.0008559,90817.0,90816.0,0.13999497]
[1731833206817,0.0008559,90817.0,90816.0,0.133112]
[1731833207052,0.0008559,90817.0,90816.0,0.13474421]
[1731833207504,0.0008559,90817.0,90816.0,0.14162644]
[1731833207950,0.0007665,90821.0,90820.0,0.110107]
[1731833208197,0.0007665,90821.0,90820.0,0.133107]
[1731833208422,0.0007665,90821.0,90820.0,0.14160828]
[1731833210076,0.0007665,90821.0,90820.0,0.03150128]
[1731833210549,0.0007665,90821.0,90820.0,0.03150132]
[1731833210806,0.1108725,90821.0,90820.0,0.00161905]
[1731833211269,0.0007665,90821.0,90815.0,0.0110116]
[1731833211497,0.110112,90816.0,90815.0,0.0110116]
[1731833212199,0.346115,90820.0,90815.0,0.0110116]
[1731833212472,0.110112,90816.0,90815.0,0.0110116]
[1731833213358,0.1259,90820.0,90815.0,0.2010116]
[1731833214069,0.110112,90816.0,90815.0,0.2010116]
[1731833215668,0.110112,90816.0,90815.0,0.19]
[1731833216401,0.110111,90818.0,90815.0,0.19]
[1731833216639,0.1259,90820.0,90815.0,0.19]
[1731833216640,0.110112,90816.0,90815.0,0.19]
[1731833216866,0.110112,90816.0,90811.0,0.023]
[1731833217096,0.110112,90816.0,90813.0,0.023]
[1731833217339,0.110114,90815.0,90814.0,0.00688279]
[1731833217601,0.21917655,90815.0,90814.0,0.00688279]
[1731833218050,0.30087655,90815.0,90814.0,0.00688279]
[1731833218272,0.11012,90810.0,90809.0,0.0017118]
[1731833219914,0.11012,90810.0,90809.0,0.1917118]
[1731833220741,0.11012,90810.0,90809.0,0.19352829]
[1731833227266,0.10212,90810.0,90809.0,0.19352829]
[1731833233519,0.21118255,90810.0,90809.0,0.19352829]
[1731833233720,0.25708255,90810.0,90809.0,0.19352829]
[1731833233923,0.33778255,90810.0,90809.0,0.19352829]
[1731833235054,0.33778255,90810.0,90809.0,0.1917118]
[1731833235055,0.34278255,90810.0,90809.0,0.1917118]
[1731833235260,0.34278255,90810.0,90809.0,0.0017118]
[1731833235924,0.50827423,90810.0,90809.0,0.0017118]
[1731833236146,0.98958689,90810.0,90809.0,0.0017118]
[1731833236389,1.09458689,90810.0,90809.0,0.0017118]
[1731833236595,0.95637176,90810.0,90809.0,0.0017118]
[1731833236815,0.84813465,90810.0,90809.0,0.0017118]
[1731833237239,1.14477928,90810.0,90809.0,0.0017118]
[1731833237445,1.14478762,90810.0,90809.0,0.0017118]
[1731833237682,0.84813465,90810.0,90809.0,0.0017118]
[1731833237894,1.39453465,90810.0,90809.0,0.0017118]
[1731833238109,1.69108067,90810.0,90809.0,0.0017118]
[1731833238341,1.39370921,90810.0,90809.0,0.0017118]
[1731833238553,0.47415715,90803.0,90802.0,0.0017118]
[1731833238758,0.98274636,90803.0,90802.0,0.0017118]
[1731833239413,0.9835718,90803.0,90802.0,0.0017118]
[1731833239639,0.98274636,90803.0,90802.0,0.0017118]
[1731833240082,1.22976935,90803.0,90802.0,0.0017118]
[1731833240328,0.98274636,90803.0,90802.0,0.0017118]
[1731833241206,1.18025478,90803.0,90802.0,0.0017118]
[1731833241411,0.98274636,90803.0,90802.0,0.0017118]
[1731833241621,0.94923032,90803.0,90802.0,0.0017118]
[1731833241795,0.94840488,90803.0,90802.0,0.0017118]
[1731833242212,0.44939055,90803.0,90802.0,0.0017118]
[1731833243202,0.54810018,90803.0,90802.0,0.0017118]
[1731833243869,0.44439055,90803.0,90802.0,0.0017118]
[1731833244530,0.34439055,90803.0,90802.0,0.0017118]
[1731833248656,0.34439055,90803.0,90802.0,0.1917118]
[1731833249315,0.34939055,90803.0,90802.0,0.1917118]
[1731833250158,0.34939055,90803.0,90802.0,0.0017118]
[1731833253643,0.38451722,90803.0,90802.0,0.0017118]
[1731833254359,0.48451722,90803.0,90802.0,0.0017118]
[1731833254562,0.63253817,90803.0,90802.0,0.0017118]
[1731833254769,0.61034637,90803.0,90802.0,0.0017118]
[1731833255408,0.97464842,90803.0,90802.0,0.0017118]
[1731833256034,1.22141841,90803.0,90802.0,0.0017118]
[1731833257163,0.96664842,90803.0,90802.0,0.0017118]
[1731833257381,0.96582298,90803.0,90802.0,0.0017118]
[1731833257635,0.60152093,90803.0,90802.0,0.0017118]
[1731833257856,0.7504311,90803.0,90802.0,0.0017118]
[1731833258076,0.47654778,90803.0,90802.0,0.0017118]
[1731833258313,0.44224655,90803.0,90802.0,0.0017118]
[1731833261247,0.54094518,90803.0,90802.0,0.0017118]
[1731833261507,0.62543141,90803.0,90802.0,0.0017118]
[1731833261756,0.47737724,90803.0,90802.0,0.0017118]
[1731833262006,1.0886397,90803.0,90802.0,0.0017118]
[1731833262296,1.08781426,90803.0,90802.0,0.0017118]
[1731833262969,0.84104427,90803.0,90802.0,0.0017118]
[1731833263390,0.84186971,90803.0,90802.0,0.0017118]
[1731833264089,0.96769886,90803.0,90802.0,8e-07]
[1731833264324,0.84186971,90803.0,90802.0,8e-07]
[1731833264977,0.21595744,90800.0,90799.0,1e-06]
[1731833265189,0.48492524,90800.0,90799.0,1e-06]
[1731833265447,0.97534295,90800.0,90799.0,1e-06]
[1731833265662,0.8495138,90800.0,90799.0,1e-06]
[1731833266116,1.27164349,90800.0,90799.0,1e-06]
[1731833266352,0.8495138,90800.0,90799.0,1e-06]
[1731833266563,0.97534295,90800.0,90799.0,1e-06]
[1731833266778,0.99834295,90800.0,90799.0,1e-06]
[1731833267005,0.99829008,90800.0,90799.0,1e-06]
[1731833267236,0.110166,90772.0,90771.0,0.0017126]
[1731833267479,0.21922855,90772.0,90771.0,0.0017126]
[1731833268182,0.22005399,90772.0,90771.0,0.0017126]
[1731833268412,0.21922855,90772.0,90771.0,0.0017126]
[1731833268658,0.21922855,90772.0,90771.0,0.1917126]
[1731833269141,0.17092132,90777.0,90771.0,0.1917126]
[1731833269142,0.09873869,90780.0,90772.0,0.1256]
[1731833269433,0.29621608,90794.0,90771.0,0.31754175]
[1731833269434,0.11014,90793.0,90792.0,0.005]
[1731833269675,0.16549168,90796.0,90795.0,0.005]
[1731833269927,0.110129,90802.0,90795.0,0.005]
[1731833270133,0.000856,90803.0,90799.0,0.0067122]
[1731833270375,0.1109881,90800.0,90799.0,0.0067122]
[1731833270614,0.22005065,90800.0,90799.0,0.0067122]
[1731833271489,0.10991865,90800.0,90799.0,0.0067122]
[1731833271702,0.22005065,90800.0,90799.0,0.0067122]
[1731833271917,0.10991865,90800.0,90799.0,0.0067122]
[1731833272131,0.21205065,90800.0,90799.0,0.0067122]
[1731833272354,0.000856,90803.0,90799.0,0.0067122]
[1731833272562,0.10906255,90802.0,90799.0,0.0067122]
[1731833273037,0.10906255,90802.0,90799.0,0.00877055]
[1731833273488,0.110132,90801.0,90799.0,0.00877055]
[1731833273723,0.21919455,90801.0,90799.0,0.0067122]
[1731833274223,0.000856,90803.0,90800.0,0.00117456]
[1731833274469,0.000856,90803.0,90802.0,0.11630356]
[1731833276304,0.000856,90803.0,90802.0,0.16290356]
[1731833276962,0.000856,90803.0,90802.0,0.26790356]
[1731833277175,0.000856,90803.0,90802.0,0.35240597]
[1731833277394,0.000856,90803.0,90802.0,0.35020356]
[1731833278619,0.000856,90803.0,90802.0,0.37320356]
[1731833281099,0.000856,90803.0,90802.0,0.24520356]
[1731833281342,0.000856,90803.0,90802.0,0.25020356]
[1731833281612,0.000856,90803.0,90802.0,0.24520356]
[1731833281830,0.000856,90803.0,90802.0,0.25020356]
[1731833283976,0.000856,90803.0,90802.0,0.27320356]
[1731833284489,0.000856,90803.0,90802.0,0.27540589]
[1731833284941,0.000856,90803.0,90802.0,0.31118996]
[1731833285155,0.000856,90803.0,90802.0,0.30898763]
[1731833285838,0.000856,90810.0,90809.0,0.39902471]
[1731833286060,0.000856,90810.0,90809.0,0.50808726]
[1731833286482,0.000856,90810.0,90809.0,0.51308726]
[1731833286697,0.000856,90810.0,90809.0,0.61308726]
[1731833286915,0.000856,90810.0,90809.0,0.64887133]
[1731833287134,0.16253838,90830.0,90829.0,0.11627056]
[1731833287582,0.110081,90842.0,90833.0,0.11126656]
[1731833287799,0.110079,90844.0,90833.0,0.11126656]
[1731833288064,0.110079,90844.0,90833.0,0.11626656]
[1731833288310,0.266149,90848.0,90833.0,0.11626656]
[1731833288747,0.110079,90844.0,90833.0,0.11626656]
[1731833288963,0.16549168,90847.0,90833.0,0.11626656]
[1731833289197,0.110077,90846.0,90833.0,0.11626656]
[1731833289423,0.16549168,90847.0,90833.0,0.11626656]
[1731833289646,0.110079,90844.0,90833.0,0.11626656]
[1731833290114,0.046,90848.0,90833.0,0.24209571]
[1731833290587,0.27556668,90847.0,90833.0,0.24209571]
[1731833291267,0.16549168,90847.0,90833.0,0.24209571]
[1731833292208,0.27556668,90847.0,90833.0,0.24209571]
[1731833292433,0.38564168,90847.0,90833.0,0.24209571]
[1731833292647,0.110077,90846.0,90833.0,0.24209571]
[1731833292860,0.0006202,90834.0,90833.0,0.24209571]
[1731833294463,0.0006202,90834.0,90833.0,0.115092]
[1731833294685,0.0006202,90834.0,90833.0,0.11626656]
[1731833294899,0.0006202,90834.0,90833.0,0.13926656]
[1731833297983,0.0006202,90834.0,90833.0,0.14146822]
[1731833298199,0.1006892,90852.0,90845.0,0.005]
[1731833298439,0.110065,90855.0,90845.0,0.005]